bitfinex-derivatives/quotes_BTCF0:USTF0_20240925
["timestamp","ask_amount","ask_price","bid_price","bid_amount"]
[1727229917283,0.078668,64373.0,64370.0,0.07690427]
[1727229917480,0.078668,64373.0,64371.0,0.17459614]
[1727229917674,0.002,64373.0,64372.0,0.09760944]
[1727229918075,0.002,64373.0,64372.0,0.17463141]
[1727229918271,0.002,64373.0,64372.0,0.07696027]
[1727229918484,0.002,64373.0,64371.0,0.07696027]
[1727229918687,0.002,64373.0,64372.0,0.07696027]
[1727229918878,0.002,64373.0,64372.0,0.15462927]
[1727229919080,0.002,64373.0,64372.0,0.077669]
[1727229919281,0.002,64373.0,64372.0,0.15462927]
[1727229919686,0.002,64373.0,64372.0,0.077669]
[1727229920389,0.002,64373.0,64372.0,0.15462927]
[1727229920688,0.002,64373.0,64372.0,0.077669]
[1727229920887,0.002,64373.0,64372.0,0.15462927]
[1727229921086,0.0036,64379.0,64372.0,1.51281963]
[1727229921383,0.0036,64382.0,64381.0,0.077658]
[1727229921585,0.0036,64382.0,64378.0,0.3608]
[1727229921586,0.077651,64387.0,64382.0,0.077657]
[1727229921884,0.0867315,64387.0,64385.0,0.0615745]
[1727229922387,0.0867315,64387.0,64381.0,0.07696871]
[1727229922388,0.0867315,64387.0,64386.0,0.0615745]
[1727229922587,0.0867315,64387.0,64381.0,0.23191199]
[1727229922588,0.0867315,64387.0,64385.0,0.0615745]
[1727229923087,0.0867315,64387.0,64386.0,0.0615745]
[1727229923292,0.077653,64385.0,64384.0,0.438455]
[1727229923587,0.077653,64385.0,64382.0,0.07696871]
[1727229923588,0.077656,64383.0,64380.0,0.07696871]
[1727229923783,0.077656,64383.0,64379.0,0.15462871]
[1727229923991,0.077656,64383.0,64381.0,0.23345687]
[1727229924187,0.077656,64383.0,64379.0,0.15462871]
[1727229924188,0.077656,64383.0,64380.0,0.23345687]
[1727229924384,0.077656,64383.0,64379.0,0.15462871]
[1727229924385,0.077656,64383.0,64379.0,0.43776871]
[1727229924591,0.077656,64383.0,64382.0,0.002]
[1727229924884,0.217656,64383.0,64382.0,0.0635831]
[1727229925184,0.217656,64383.0,64382.0,0.002]
[1727229925586,0.077659,64380.0,64379.0,0.4223831]
[1727229925787,0.077659,64380.0,64379.0,0.3608]
[1727229926289,0.077659,64380.0,64379.0,0.3618]
[1727229927092,0.078659,64380.0,64379.0,0.3618]
[1727229927781,0.001,64380.0,64379.0,0.439461]
[1727229927982,0.001,64380.0,64379.0,0.61407158]
[1727229928195,0.002,64380.0,64379.0,0.53810287]
[1727229929087,0.002,64380.0,64379.0,0.17730287]
[1727229931390,0.002,64380.0,64379.0,0.09964187]
[1727229931590,0.079659,64380.0,64379.0,0.09964187]
[1727229932291,0.079659,64380.0,64379.0,0.17662775]
[1727229933393,0.079659,64380.0,64379.0,0.09964187]
[1727229933698,0.219659,64380.0,64379.0,0.002]
[1727229933992,0.219659,64380.0,64379.0,0.06359781]
[1727229936088,0.079659,64380.0,64379.0,0.06359781]
[1727229936595,0.079659,64380.0,64379.0,0.002]
[1727229936800,0.079659,64380.0,64379.0,0.06359919]
[1727229938287,0.079659,64380.0,64379.0,0.06359915]
[1727229938594,0.079659,64380.0,64379.0,0.002]
[1727229939324,0.079659,64380.0,64379.0,0.0635982]
[1727229939596,0.00913501,64381.0,64379.0,0.0635982]
[1727229939597,0.00913501,64381.0,64379.0,0.079661]
[1727229939800,0.077657,64383.0,64379.0,0.15664608]
[1727229940397,0.3608,64386.0,64379.0,0.07898508]
[1727229940596,0.077659,64380.0,64379.0,0.002]
[1727229941897,0.077659,64380.0,64379.0,0.003]
[1727229942397,0.077659,64380.0,64379.0,0.004]
[1727229942600,0.078659,64380.0,64379.0,0.004]
[1727229943305,0.079659,64380.0,64379.0,0.005]
[1727229945596,0.079659,64380.0,64379.0,0.08196492]
[1727229945899,0.079659,64380.0,64379.0,0.005]
[1727229946110,0.079659,64380.0,64379.0,0.1794679]
[1727229946295,0.079659,64380.0,64379.0,0.005]
[1727229946600,0.580459,64380.0,64379.0,0.005]
[1727229946799,0.219659,64380.0,64379.0,0.005]
[1727229947099,0.658118,64380.0,64379.0,0.005]
[1727229948397,0.72012287,64380.0,64379.0,0.005]
[1727229949098,0.658118,64380.0,64379.0,0.005]
[1727229949401,0.72012287,64380.0,64379.0,0.005]
[1727229949791,1.258118,64380.0,64379.0,0.005]
[1727229950100,0.155332,64375.0,64374.0,0.0036]
[1727229950296,0.077667,64374.0,64373.0,0.06161416]
[1727229950494,0.3608,64374.0,64373.0,0.06161205]
[1727229952205,0.077668,64373.0,64372.0,0.06161205]
[1727229955999,0.078668,64373.0,64372.0,0.06161205]
[1727229956810,0.079668,64373.0,64370.0,0.07767]
[1727229957101,0.079668,64373.0,64372.0,0.3608]
[1727229957303,0.079668,64373.0,64371.0,0.07767]
[1727229957797,0.078668,64373.0,64371.0,0.07767]
[1727229957998,0.079668,64373.0,64371.0,0.07767]
[1727229958408,0.077669,64372.0,64371.0,0.07767]
[1727229959908,0.078669,64372.0,64371.0,0.07767]
[1727229960803,0.079669,64372.0,64371.0,0.07767]
[1727229961410,0.07767,64371.0,64367.0,0.15469006]
[1727229961710,0.07767,64371.0,64370.0,0.077672]
[1727229961898,0.002,64372.0,64371.0,0.07767]
[1727229962605,0.002,64372.0,64371.0,0.15468506]
[1727229962606,0.001,64372.0,64371.0,0.15468506]
[1727229963015,0.001,64372.0,64371.0,0.25222589]
[1727229963397,0.002,64372.0,64371.0,0.25222589]
[1727229963608,0.078669,64372.0,64371.0,0.17463207]
[1727229963915,0.078669,64372.0,64366.0,0.438476]
[1727229963916,0.001,64372.0,64369.0,0.07709124]
[1727229964405,0.002,64372.0,64369.0,0.07709124]
[1727229964818,0.002,64372.0,64368.0,0.07709124]
[1727229965006,0.077672,64370.0,64369.0,0.07709124]
[1727229965207,0.077672,64370.0,64368.0,0.07709124]
[1727229965509,0.077672,64370.0,64369.0,0.07709124]
[1727229965713,0.077672,64370.0,64368.0,0.07709124]
[1727229965921,0.217673,64369.0,64368.0,0.07709124]
[1727229966211,0.217673,64369.0,64368.0,0.17475387]
[1727229967421,0.217673,64369.0,64368.0,0.09766263]
[1727229967801,0.00937033,64374.0,64368.0,0.46984355]
[1727229967802,0.001,64370.0,64368.0,0.46984355]
[1727229968005,0.001,64370.0,64369.0,0.17533463]
[1727229968414,0.001,64370.0,64369.0,0.40797983]
[1727229968617,0.00937033,64374.0,64369.0,0.33030783]
[1727229968918,0.077666,64375.0,64372.0,0.07712381]
[1727229969722,0.077666,64375.0,64373.0,0.3608]
[1727229970108,0.077666,64375.0,64374.0,0.0909]
[1727229970415,0.078666,64375.0,64374.0,0.0909]
[1727229971402,0.079666,64375.0,64374.0,0.0909]
[1727229973819,0.08918797,64375.0,64374.0,0.0909]
[1727229974718,0.08918797,64375.0,64373.0,0.43884381]
[1727229974719,0.077667,64374.0,64373.0,0.43884381]
[1727229975023,0.217667,64374.0,64373.0,0.53555726]
[1727229975614,0.217667,64374.0,64373.0,0.53558159]
[1727229976316,0.217667,64374.0,64373.0,0.45845778]
[1727229976508,0.218667,64374.0,64373.0,0.45845778]
[1727229977109,0.219667,64374.0,64373.0,0.45845778]
[1727229978418,0.219667,64374.0,64373.0,0.45745778]
[1727229978915,0.079667,64374.0,64373.0,0.53469594]
[1727229979120,0.079667,64374.0,64373.0,0.61236394]
[1727229979420,0.002,64374.0,64373.0,0.53512578]
[1727229980027,0.002,64374.0,64373.0,0.6274817]
[1727229980319,0.002,64374.0,64373.0,0.62748617]
[1727229981520,0.002,64374.0,64373.0,0.76724401]
[1727229981904,0.002,64374.0,64373.0,0.71591326]
[1727229983122,0.002,64374.0,64373.0,0.66958176]
[1727229984120,0.002,64374.0,64373.0,0.80231326]
[1727229984514,0.06410759,64374.0,64373.0,0.75598176]
[1727229985014,0.07756284,64382.0,64374.0,0.46604]
[1727229985320,0.0036,64384.0,64383.0,0.077656]
[1727229985622,0.07756284,64386.0,64385.0,0.077653]
[1727229985834,0.53152341,64390.0,64385.0,0.077653]
[1727229985835,0.07756284,64387.0,64385.0,0.077653]
[1727229986211,0.07756284,64389.0,64386.0,0.077652]
[1727229986412,0.07756284,64389.0,64387.0,0.3608]
[1727229986624,0.07756284,64390.0,64389.0,0.077649]
[1727229986918,0.17071841,64394.0,64390.0,0.077647]
[1727229986919,0.07756284,64391.0,64390.0,0.077647]
[1727229987132,0.0775624,64392.0,64391.0,0.077646]
[1727229987311,0.0775624,64393.0,64392.0,0.077645]
[1727229987518,0.0775624,64394.0,64392.0,0.077645]
[1727229988126,0.0775624,64395.0,64392.0,0.077645]
[1727229988925,0.007,64394.0,64392.0,0.077645]
[1727229990021,0.007,64394.0,64393.0,0.0462866]
[1727229990263,0.015,64394.0,64392.0,0.077645]
[1727229990416,0.015,64394.0,64392.0,0.1239316]
[1727229990744,0.085643,64394.0,64391.0,0.0462866]
[1727229991115,0.077644,64393.0,64392.0,0.23226627]
[1727229991527,0.077644,64393.0,64390.0,0.0462866]
[1727229991725,0.14,64391.0,64390.0,0.0462866]
[1727229992031,0.14,64391.0,64390.0,0.2805894]
[1727229993118,0.14,64391.0,64390.0,0.2343028]
[1727229993520,0.10115619,64391.0,64389.0,0.28029068]
[1727229994027,0.10115619,64391.0,64389.0,0.0462866]
[1727229994227,0.10115619,64391.0,64390.0,0.23400408]
[1727229994430,0.10615619,64391.0,64390.0,0.23400408]
[1727229994735,0.11115619,64391.0,64390.0,0.23400408]
[1727229995233,0.10615619,64391.0,64390.0,0.23400408]
[1727229995419,0.11215619,64391.0,64390.0,0.23400408]
[1727229995621,0.011,64391.0,64390.0,0.23400408]
[1727229995929,0.011,64391.0,64390.0,0.13936579]
[1727229996130,0.00952569,64397.0,64396.0,0.07764]
[1727229996325,0.0036,64404.0,64396.0,0.5008]
[1727229996526,0.077631,64404.0,64402.0,0.3608]
[1727229997030,0.02516735,64403.0,64402.0,0.3608]
[1727229998522,0.03916735,64403.0,64402.0,0.438433]
[1727229998727,0.028,64403.0,64402.0,0.438433]
[1727229999133,0.10532551,64403.0,64402.0,0.438433]
[1727229999437,0.10532551,64403.0,64402.0,0.67202618]
[1727230000261,0.028,64403.0,64402.0,0.67202618]
[1727230000635,0.00936381,64405.0,64404.0,0.077631]
[1727230000844,0.07732551,64409.0,64408.0,0.077626]
[1727230001031,0.08641888,64409.0,64408.0,0.077626]
[1727230001241,0.08641888,64409.0,64408.0,0.31142736]
[1727230001242,0.00909337,64409.0,64408.0,0.31142736]
[1727230001437,0.07732551,64410.0,64409.0,0.077625]
[1727230001637,0.07732551,64410.0,64409.0,0.173825]
[1727230001840,0.07732551,64410.0,64409.0,0.40793231]
[1727230002238,0.07732551,64411.0,64409.0,0.40793231]
[1727230002432,0.07732551,64411.0,64410.0,0.0922]
[1727230003136,0.07732551,64412.0,64410.0,0.0922]
[1727230004141,0.014,64411.0,64410.0,0.0932]
[1727230004332,0.014,64411.0,64410.0,0.170823]
[1727230004729,0.09132551,64412.0,64410.0,0.170823]
[1727230004930,0.10532551,64412.0,64410.0,0.171823]
[1727230005142,0.014,64412.0,64410.0,0.170823]
[1727230005333,0.014,64411.0,64410.0,0.171823]
[1727230007729,0.028,64411.0,64410.0,0.171823]
[1727230012240,0.17726522,64411.0,64410.0,0.171823]
[1727230012433,0.27038235,64411.0,64410.0,0.171823]
[1727230013233,0.1462818,64411.0,64410.0,0.171823]
[1727230016444,0.20335339,64411.0,64410.0,0.171823]
[1727230016645,0.1462818,64411.0,64410.0,0.171823]
[1727230017145,0.24260388,64411.0,64410.0,0.171823]
[1727230017343,0.34282141,64411.0,64410.0,0.171823]
[1727230017943,0.3428583,64411.0,64410.0,0.171823]
[1727230020244,0.028,64411.0,64410.0,0.21794919]
[1727230021259,0.028,64411.0,64410.0,0.14032619]
[1727230021260,0.105622,64411.0,64410.0,0.14032619]
[1727230022145,0.105622,64411.0,64410.0,0.002]
[1727230023240,0.105622,64411.0,64410.0,0.079623]
[1727230024153,0.028,64411.0,64410.0,0.079623]
[1727230024338,0.028,64411.0,64410.0,0.169623]
[1727230025951,0.028,64411.0,64410.0,0.24684216]
[1727230026159,0.028,64411.0,64410.0,0.26616519]
[1727230026345,0.028,64411.0,64410.0,0.34318455]
[1727230026748,0.028,64411.0,64410.0,0.25318455]
[1727230027242,0.09646194,64411.0,64410.0,0.079623]
[1727230027447,0.20397559,64411.0,64410.0,0.079623]
[1727230027844,0.25022847,64411.0,64410.0,0.079623]
[1727230028452,0.35774212,64411.0,64410.0,0.31217736]
[1727230028650,0.20397559,64411.0,64410.0,0.31217736]
[1727230029581,0.20397559,64411.0,64410.0,0.40217736]
[1727230030054,0.25167277,64411.0,64410.0,0.40217736]
[1727230030259,0.20397559,64411.0,64410.0,0.40217736]
[1727230030467,0.14673231,64411.0,64410.0,1.51793736]
[1727230030648,0.0036,64419.0,64411.0,0.077622]
[1727230030649,0.13969611,64414.0,64411.0,0.077622]
[1727230030955,0.15881083,64419.0,64411.0,0.077622]
[1727230030956,0.1396869,64418.0,64413.0,0.5008]
[1727230031155,0.1396869,64420.0,64419.0,0.077612]
[1727230031346,0.14898531,64423.0,64422.0,0.077609]
[1727230031548,0.00929841,64423.0,64422.0,0.077609]
[1727230031763,0.15521083,64426.0,64422.0,0.30928479]
[1727230031950,0.15521083,64426.0,64424.0,0.3608]
[1727230032352,0.15521083,64428.0,64424.0,0.3608]
[1727230032546,0.15521083,64427.0,64424.0,0.3608]
[1727230032957,0.15521083,64426.0,64424.0,0.3608]
[1727230033366,0.15521083,64427.0,64424.0,0.3608]
[1727230033865,0.15521083,64426.0,64424.0,0.3608]
[1727230034255,0.16021083,64426.0,64424.0,0.3618]
[1727230034566,0.005,64426.0,64424.0,0.3628]
[1727230035149,0.005,64426.0,64425.0,0.077605]
[1727230035455,0.012,64427.0,64425.0,0.077605]
[1727230035847,0.012,64427.0,64424.0,0.3628]
[1727230036065,0.089603,64427.0,64424.0,0.3628]
[1727230036563,0.008,64426.0,64425.0,0.077605]
[1727230037453,0.00929469,64429.0,64425.0,0.077605]
[1727230037670,0.0776,64430.0,64425.0,0.077605]
[1727230038375,0.0776,64430.0,64425.0,0.079605]
[1727230038576,0.077601,64429.0,64425.0,0.079605]
[1727230040472,0.083601,64429.0,64426.0,0.077604]
[1727230040877,0.091601,64429.0,64427.0,0.077602]
[1727230042976,0.10076841,64429.0,64427.0,0.077602]
[1727230043478,0.10076841,64429.0,64427.0,0.078602]
[1727230043667,0.09276841,64429.0,64427.0,0.078602]
[1727230043869,0.10076841,64429.0,64427.0,0.079602]
[1727230045775,0.10076841,64429.0,64428.0,0.30955765]
[1727230045776,0.02316741,64429.0,64428.0,0.30955765]
[1727230045983,0.02316741,64429.0,64428.0,0.40185765]
[1727230046868,0.02316741,64429.0,64428.0,0.40285765]
[1727230047173,0.02316741,64429.0,64428.0,0.40385765]
[1727230048178,0.014,64429.0,64428.0,0.40385765]
[1727230049175,0.0036,64434.0,64433.0,0.077596]
[1727230049475,0.365,64451.0,64437.0,0.077591]
[1727230049476,0.0036,64438.0,64437.0,0.077591]
[1727230049682,0.0036,64445.0,64437.0,0.14]
[1727230049873,0.14305509,64450.0,64443.0,0.5008]
[1727230050166,0.17189676,64447.0,64444.0,0.23310494]
[1727230050367,0.17189676,64446.0,64445.0,0.09]
[1727230053988,0.17189676,64446.0,64445.0,0.40141929]
[1727230054175,0.16432054,64446.0,64445.0,0.40141929]
[1727230054371,0.28138619,64446.0,64445.0,0.40141929]
[1727230054572,0.16432054,64446.0,64445.0,0.40141929]
[1727230055281,0.13917032,64446.0,64445.0,0.40141929]
[1727230057190,0.26516847,64448.0,64445.0,1.46693929]
[1727230057191,0.16989045,64447.0,64445.0,1.46693929]
[1727230057391,0.16989045,64447.0,64446.0,0.25318]
[1727230057587,0.06174926,64449.0,64446.0,0.25318]
[1727230057884,0.06174926,64449.0,64448.0,0.09]
[1727230058285,0.06174926,64449.0,64448.0,0.32405284]
[1727230058688,0.06174926,64450.0,64448.0,0.32405284]
[1727230058889,0.06174926,64450.0,64449.0,0.09]
[1727230059184,0.15475857,64453.0,64449.0,0.32267843]
[1727230059389,0.07718657,64454.0,64453.0,0.077572]
[1727230059577,0.07718657,64457.0,64454.0,0.07757]
[1727230059778,0.07718657,64458.0,64456.0,0.09]
[1727230059998,0.07718657,64457.0,64456.0,0.09]
[1727230060185,0.07718657,64458.0,64457.0,0.31044964]
[1727230060388,0.07718657,64460.0,64456.0,0.68368264]
[1727230060687,0.07718657,64461.0,64460.0,0.077563]
[1727230060986,0.10278151,64467.0,64460.0,0.077563]
[1727230060987,0.06176169,64464.0,64461.0,0.30916671]
[1727230061177,0.06173103,64464.0,64463.0,0.09]
[1727230061374,0.0617309,64464.0,64463.0,0.09]
[1727230061573,0.0617309,64464.0,64463.0,0.32160471]
[1727230061988,0.06173246,64464.0,64463.0,0.32160471]
[1727230062288,0.06173246,64466.0,64463.0,0.23160471]
[1727230062588,0.06173246,64465.0,64461.0,0.077562]
[1727230062791,0.077558,64464.0,64462.0,0.23271304]
[1727230063083,0.13929046,64464.0,64463.0,0.002]
[1727230063288,0.077558,64464.0,64463.0,0.002]
[1727230063494,0.077558,64464.0,64463.0,0.23471304]
[1727230063686,0.13929046,64464.0,64463.0,0.23371304]
[1727230064992,0.13929046,64464.0,64463.0,0.001]
[1727230064993,0.578358,64464.0,64463.0,0.001]
[1727230065196,0.077561,64462.0,64461.0,0.001]
[1727230065489,0.077561,64462.0,64450.0,0.077575]
[1727230065490,0.2972059,64462.0,64447.0,0.11713516]
[1727230065689,0.077567,64457.0,64446.0,0.59132]
[1727230065884,0.3906059,64456.0,64451.0,0.37158262]
[1727230066090,0.2972059,64455.0,64452.0,0.077573]
[1727230066290,0.27206049,64454.0,64447.0,0.20080949]
[1727230066489,0.27206049,64453.0,64452.0,0.23158262]
[1727230066881,0.27206049,64453.0,64451.0,0.14]
[1727230067081,0.27206049,64452.0,64451.0,0.217574]
[1727230067495,0.200367,64452.0,64451.0,0.44984722]
[1727230069489,0.201367,64452.0,64451.0,0.44984722]
[1727230069695,0.201367,64452.0,64451.0,0.37227322]
[1727230069895,0.202367,64452.0,64451.0,0.37227322]
[1727230072291,0.002,64452.0,64451.0,0.37227322]
[1727230080317,0.17979458,64452.0,64451.0,0.20154018]
[1727230080495,0.18888012,64452.0,64451.0,0.34154018]
[1727230080800,0.18888012,64452.0,64451.0,0.50731418]
[1727230081206,0.18881776,64452.0,64451.0,0.50731418]
[1727230081701,0.17973222,64452.0,64451.0,0.50731418]
[1727230082110,0.17973222,64452.0,64451.0,1.46811418]
[1727230082304,0.10314864,64452.0,64451.0,1.88359418]
[1727230083709,0.10314864,64452.0,64451.0,1.28359418]
[1727230084297,0.10314864,64452.0,64451.0,1.33359418]
[1727230084804,0.25798788,64452.0,64451.0,1.93359418]
[1727230085308,0.10314864,64452.0,64451.0,1.33359418]
[1727230086105,0.14120249,64452.0,64451.0,0.79054018]
[1727230086408,0.14120249,64452.0,64451.0,0.86811418]
[1727230086610,0.08557969,64452.0,64451.0,0.86811418]
[1727230087406,0.0928,64460.0,64455.0,0.077568]
[1727230087703,0.0928,64460.0,64457.0,0.14]
[1727230087929,0.170363,64460.0,64457.0,0.14]
[1727230088109,0.170363,64460.0,64458.0,0.23394689]
[1727230088410,0.077564,64459.0,64458.0,0.23394689]
[1727230089503,0.077564,64459.0,64458.0,0.23494689]
[1727230089913,0.077564,64459.0,64458.0,0.23394689]
[1727230090103,0.389428,64459.0,64458.0,0.001]
[1727230090301,0.483728,64459.0,64458.0,0.001]
[1727230090501,0.57665016,64459.0,64458.0,0.001]
[1727230090709,0.343728,64459.0,64458.0,0.001]
[1727230091514,0.35911864,64459.0,64458.0,0.001]
[1727230091699,0.266164,64459.0,64458.0,0.001]
[1727230096114,0.077564,64459.0,64458.0,0.001]
[1727230098319,0.0928,64460.0,64458.0,0.078565]
[1727230099523,0.0928,64460.0,64458.0,0.077565]
[1727230099717,0.0928,64460.0,64458.0,0.078565]
[1727230100126,0.170363,64460.0,64458.0,0.078565]
[1727230101325,0.077564,64459.0,64458.0,0.001]
[1727230101829,0.17051864,64459.0,64458.0,0.001]
[1727230102317,0.23722103,64459.0,64452.0,0.217572]
[1727230102519,0.23722103,64458.0,64452.0,0.04839526]
[1727230102824,0.23722103,64457.0,64452.0,0.42073816]
[1727230103024,0.23722103,64456.0,64452.0,0.42073816]
[1727230103221,0.31479003,64455.0,64452.0,0.42073816]
[1727230103419,0.20486814,64454.0,64452.0,0.42073816]
[1727230103621,0.20486814,64453.0,64452.0,0.42073816]
[1727230104216,0.14121783,64453.0,64452.0,0.42073816]
[1727230104417,0.20486814,64453.0,64452.0,0.3723429]
[1727230106330,0.20486814,64453.0,64452.0,0.3223429]
[1727230108631,0.20486814,64453.0,64452.0,0.30737111]
[1727230109222,0.21394126,64453.0,64452.0,0.30737111]
[1727230110016,0.21393837,64453.0,64452.0,0.30737111]
[1727230110223,0.21393837,64453.0,64452.0,0.38494411]
[1727230110425,0.00907312,64453.0,64452.0,0.38494411]
[1727230110736,0.170363,64460.0,64454.0,0.07757]
[1727230111030,0.170363,64460.0,64457.0,0.09]
[1727230114337,0.1795563,64460.0,64457.0,0.09]
[1727230118930,0.0867563,64460.0,64457.0,0.09]
[1727230119937,0.0091933,64460.0,64458.0,0.077565]
[1727230120139,0.3608,64463.0,64458.0,0.077565]
[1727230121139,0.43836,64463.0,64458.0,0.077565]
[1727230121731,0.3608,64463.0,64461.0,0.09]
[1727230122932,0.3608,64463.0,64461.0,0.167562]
[1727230123136,0.3608,64463.0,64461.0,0.168562]
[1727230123736,0.3608,64463.0,64461.0,0.091]
[1727230123943,0.36995859,64463.0,64461.0,0.091]
[1727230124142,0.077561,64462.0,64461.0,0.001]
[1727230124659,0.077561,64462.0,64461.0,0.002]
[1727230125340,0.21876312,64462.0,64461.0,0.002]
[1727230128647,0.21876312,64462.0,64461.0,0.00130902]
[1727230129553,0.21877092,64462.0,64461.0,0.00130902]
[1727230132341,0.077561,64462.0,64461.0,0.00130902]
[1727230139149,0.245122,64462.0,64461.0,0.00130902]
[1727230139353,0.07757,64454.0,64453.0,0.0036]
[1727230139650,0.077575,64450.0,64449.0,0.45172]
[1727230139857,0.077575,64450.0,64449.0,0.4508]
[1727230140050,0.438375,64450.0,64449.0,0.32267317]
[1727230140669,0.57960608,64450.0,64449.0,0.32267317]
[1727230141378,0.57960608,64450.0,64449.0,0.32467317]
[1727230141546,0.57960608,64450.0,64449.0,0.32667317]
[1727230142655,0.57960561,64450.0,64449.0,0.32667317]
[1727230144056,0.57960561,64450.0,64449.0,0.32467317]
[1727230144248,0.57960561,64450.0,64449.0,0.32667317]
[1727230144765,0.21880561,64450.0,64449.0,0.32667317]
[1727230144969,0.57960561,64450.0,64449.0,0.32667317]
[1727230146563,0.50203061,64450.0,64449.0,0.32667317]
[1727230146768,0.14123061,64450.0,64449.0,0.40424917]
[1727230147059,0.34269581,64450.0,64449.0,0.40424917]
[1727230147459,0.2014652,64450.0,64449.0,0.60670482]
[1727230148369,0.2014652,64450.0,64449.0,0.51404182]
[1727230148864,0.2014652,64450.0,64449.0,0.60670482]
[1727230150366,0.01303513,64457.0,64449.0,0.52912882]
[1727230150664,0.00943513,64457.0,64456.0,0.09]
[1727230150967,0.3608,64458.0,64457.0,0.077567]
[1727230151265,0.3608,64458.0,64457.0,0.31017624]
[1727230152465,0.3618,64458.0,64457.0,0.31017624]
[1727230152852,0.37103349,64458.0,64457.0,0.31017624]
[1727230154964,0.01023349,64458.0,64457.0,0.31017624]
[1727230155659,0.15143972,64458.0,64457.0,0.31017624]
[1727230158171,0.15143972,64458.0,64457.0,0.17109771]
[1727230158960,0.22900572,64458.0,64457.0,0.17109771]
[1727230159568,0.15143972,64458.0,64457.0,0.17109771]
[1727230159767,0.31900572,64458.0,64457.0,0.17109771]
[1727230159958,0.077572,64453.0,64450.0,0.09]
[1727230160158,0.21877923,64452.0,64450.0,0.09]
[1727230160375,0.14120623,64451.0,64450.0,0.32310447]
[1727230160564,0.14120623,64451.0,64450.0,0.09]
[1727230160757,0.14120623,64451.0,64450.0,0.32310447]
[1727230161175,0.14120623,64451.0,64450.0,0.32510447]
[1727230162575,0.077574,64451.0,64450.0,0.23510447]
[1727230162764,0.077574,64451.0,64450.0,0.32510447]
[1727230163275,0.077574,64451.0,64450.0,0.23510447]
[1727230163472,0.077584,64443.0,64442.0,0.0036]
[1727230163773,0.7216,64443.0,64439.0,0.09]
[1727230164965,0.077593,64435.0,64431.0,0.0936]
[1727230165172,0.3608,64434.0,64431.0,0.09]
[1727230165476,0.3608,64434.0,64432.0,0.23200112]
[1727230166675,0.0947,64433.0,64432.0,0.23200112]
[1727230167960,0.0947,64433.0,64432.0,0.26000112]
[1727230169573,0.0947,64433.0,64432.0,0.36991386]
[1727230170469,0.2784,64433.0,64432.0,0.08949838]
[1727230170676,0.2784,64433.0,64432.0,0.028]
[1727230170874,0.2784,64433.0,64427.0,0.06149838]
[1727230170875,0.077597,64432.0,64427.0,0.06149838]
[1727230171068,0.167602,64428.0,64427.0,0.06149838]
[1727230171270,0.167602,64428.0,64422.0,0.0036]
[1727230171271,0.077604,64426.0,64424.0,0.06149838]
[1727230171468,0.077608,64423.0,64422.0,0.06149838]
[1727230171777,0.07761,64421.0,64420.0,0.06149838]
[1727230172167,0.07761,64421.0,64416.0,0.00232862]
[1727230172168,0.07761,64421.0,64418.0,0.23231128]
[1727230172473,0.3608,64419.0,64416.0,0.063827]
[1727230172971,0.3608,64419.0,64418.0,0.23231128]
[1727230173181,0.3608,64419.0,64417.0,0.29380966]
[1727230173367,0.3608,64419.0,64416.0,0.00232862]
[1727230173792,0.3608,64419.0,64418.0,0.23423859]
[1727230174072,0.3608,64419.0,64416.0,0.00232862]
[1727230174469,0.3608,64419.0,64418.0,0.004]
[1727230175175,0.3608,64419.0,64418.0,0.001]
[1727230176588,0.3608,64425.0,64418.0,0.1889]
[1727230176776,0.3608,64425.0,64424.0,0.14]
[1727230177478,0.3608,64425.0,64418.0,0.0955]
[1727230177979,0.3608,64425.0,64418.0,0.0945]
[1727230178479,0.077607,64424.0,64418.0,0.0935]
[1727230178670,0.077607,64424.0,64418.0,0.171113]
[1727230178875,0.3668,64425.0,64420.0,0.217611]
[1727230179588,0.3618,64425.0,64420.0,0.217611]
[1727230179979,0.37119605,64425.0,64420.0,0.217611]
[1727230180277,0.37119605,64425.0,64423.0,0.077607]
[1727230180278,0.31684395,64425.0,64423.0,0.077607]
[1727230180782,0.001,64424.0,64423.0,0.077607]
[1727230181375,0.31584395,64425.0,64423.0,0.077607]
[1727230181677,0.31684395,64425.0,64423.0,0.085607]
[1727230182279,0.31684395,64425.0,64423.0,0.080607]
[1727230182280,0.31584395,64425.0,64423.0,0.080607]
[1727230182468,0.31584395,64425.0,64423.0,0.083607]
[1727230184184,0.31584395,64425.0,64423.0,0.081607]
[1727230184584,0.31584395,64425.0,64423.0,0.078607]
[1727230184880,0.31584395,64425.0,64423.0,0.002]
[1727230185082,0.31584395,64425.0,64423.0,0.001]
[1727230185387,0.31584395,64425.0,64423.0,0.006]
[1727230185682,0.39344895,64425.0,64423.0,0.006]
[1727230185878,0.39344895,64425.0,64423.0,0.003]
[1727230186078,0.39344895,64425.0,64423.0,0.006]
[1727230186485,0.077606,64424.0,64423.0,0.003]
[1727230186674,0.077606,64424.0,64423.0,0.006]
[1727230187678,0.077606,64424.0,64423.0,0.007]
[1727230188477,0.077606,64424.0,64423.0,0.006]
[1727230188971,0.077606,64424.0,64423.0,0.004]
[1727230189178,0.077606,64424.0,64423.0,0.002]
[1727230189375,0.077606,64424.0,64423.0,0.06349838]
[1727230189578,0.155212,64424.0,64423.0,0.06343164]
[1727230189779,0.077615,64417.0,64416.0,0.00232862]
[1727230190090,0.578415,64417.0,64416.0,0.00232862]
[1727230191075,0.65603,64417.0,64416.0,0.00232862]
[1727230191574,0.65603,64417.0,64416.0,0.00732862]
[1727230191770,0.65603,64417.0,64416.0,0.01232862]
[1727230192587,0.61719869,64417.0,64416.0,0.01232862]
[1727230193086,0.97799869,64417.0,64416.0,0.01232862]
[1727230193478,0.83799869,64417.0,64416.0,0.01232862]
[1727230194183,0.20669869,64417.0,64416.0,0.01232862]
[1727230194485,0.92829869,64417.0,64416.0,0.01232862]
[1727230194684,0.85068369,64417.0,64416.0,0.01232862]
[1727230195082,0.85068369,64417.0,64416.0,0.08919361]
[1727230195285,0.85068369,64417.0,64416.0,0.01232862]